bitfinex/quotes_ETHUSD_20250914
["timestamp","ask_amount","ask_price","bid_price","bid_amount"]
[1757858990613,0.5708,4629.7,4629.3,0.001]
[1757858990816,0.3134,4629.4,4629.3,0.001]
[1757858991422,0.4628,4629.6,4629.3,2.16113225]
[1757858991841,0.4628,4629.6,4629.3,0.001]
[1757858992731,0.4628,4629.6,4629.3,2.1611447]
[1757858993065,0.4628,4629.6,4629.3,0.001]
[1757858994231,0.4628,4629.6,4629.3,2.16113372]
[1757858994433,0.108,4629.7,4629.4,2.16010168]
[1757858994845,0.108,4629.7,4629.5,2.16003658]
[1757858995246,0.108,4629.7,4629.6,0.7409]
[1757858995558,0.108,4629.7,4629.6,2.44971382]
[1757858995945,0.108,4629.7,4629.6,0.2897]
[1757858996144,0.108,4629.7,4629.5,2.16005074]
[1757858996776,0.108,4629.7,4629.6,0.76250013]
[1757858996968,0.1072,4629.9,4629.6,0.76250013]
[1757858997165,0.1072,4629.9,4629.8,2.15992051]
[1757858998070,0.1072,4629.9,4629.8,2.18151971]
[1757858998443,0.1072,4629.9,4629.8,2.47121971]
[1757858998637,0.1072,4629.9,4629.8,2.92241971]
[1757858998871,0.1072,4629.9,4629.8,2.90082051]
[1757859000572,0.1072,4629.9,4629.8,2.44962051]
[1757859000772,0.1072,4629.9,4629.8,2.15992051]
[1757859001075,0.1072,4629.9,4629.8,2.90082051]
[1757859002664,0.1072,4629.9,4629.8,2.92241971]
[1757859003162,0.1072,4629.9,4629.8,3.47505241]
[1757859003361,3.8552,4630.5,4630.4,2.15964063]
[1757859003763,0.002,4630.8,4630.6,2.15954735]
[1757859004081,0.1072,4630.7,4630.6,2.15954735]
[1757859004372,0.1072,4630.7,4630.6,0.2897]
[1757859004572,0.4111,4630.7,4630.3,2.15967595]
[1757859004745,0.4111,4630.7,4630.0,0.1072]
[1757859005538,0.1072,4630.7,4630.6,2.15954735]
[1757859005862,0.002,4630.8,4630.7,2.15950072]
[1757859006062,0.002,4630.8,4630.7,2.61070072]
[1757859006264,0.002,4630.8,4630.7,2.90040072]
[1757859006439,0.002,4630.8,4630.7,2.44920072]
[1757859006638,0.002,4630.8,4630.7,2.15950072]
[1757859007080,0.002,4630.8,4630.7,2.90040072]
[1757859007444,0.002,4630.8,4630.7,3.81537007]
[1757859008885,0.002,4630.8,4630.7,4.25927007]
[1757859009667,0.002,4630.8,4630.7,5.13687507]
[1757859009870,0.002,4630.8,4630.7,8.13687507]
[1757859010179,0.002,4630.8,4630.7,9.79387507]
[1757859010770,0.002,4630.8,4630.7,11.33919644]
[1757859011177,0.002,4630.8,4630.7,9.79387507]
[1757859011657,0.002,4630.8,4630.7,13.08997507]
[1757859012360,0.002,4630.8,4630.7,9.34997507]
[1757859012543,0.002,4630.8,4630.7,13.53287507]
[1757859012748,0.002,4630.8,4630.7,9.79387507]
[1757859012974,0.002,4630.8,4630.7,12.29697507]
[1757859013157,0.002,4630.8,4630.7,10.18877507]
[1757859013556,0.002,4630.8,4630.7,10.63897507]
[1757859013878,0.002,4630.8,4630.7,6.90097507]
[1757859014281,0.002,4630.8,4630.7,10.63797507]
[1757859014485,0.002,4630.8,4630.7,6.90097507]
[1757859014650,0.002,4630.8,4630.7,10.63797507]
[1757859014851,0.002,4630.8,4630.7,6.90097507]
[1757859015051,0.002,4630.8,4630.7,10.63697507]
[1757859015383,0.002,4630.8,4630.7,11.08087507]
[1757859017001,0.002,4630.8,4630.7,11.87287507]
[1757859017701,0.002,4630.8,4630.7,11.42897507]
[1757859018074,0.002,4630.8,4630.7,11.88287507]
[1757859019327,0.002,4630.8,4630.7,11.42897507]
[1757859019505,0.002,4630.8,4630.7,11.88287507]
[1757859020009,0.002,4630.8,4630.7,11.42897507]
[1757859021097,0.002,4630.8,4630.7,7.69297507]
[1757859021312,0.002,4630.8,4630.7,11.42697507]
[1757859021608,0.002,4630.8,4630.7,7.69297507]
[1757859021823,0.002,4630.8,4630.7,10.97177507]
[1757859022472,0.002,4630.8,4630.7,6.44977507]
[1757859022677,0.7686,4630.8,4630.7,5.99570072]
[1757859022874,0.7686,4630.8,4630.7,5.26670072]
[1757859023287,1.2196,4630.8,4630.7,0.1072]
[1757859023530,1.2196,4630.8,4630.7,2.15950072]
[1757859025326,0.7686,4630.8,4630.7,2.15950072]
[1757859025826,0.2995,4630.8,4630.7,2.15950072]
[1757859026195,0.002,4630.8,4630.7,2.18109572]
[1757859026995,0.002,4630.8,4630.7,7.32818351]
[1757859027195,0.002,4630.8,4630.7,8.59708851]
[1757859027397,0.002,4630.8,4630.7,8.70428851]
[1757859027596,0.002,4630.8,4630.7,11.70428851]
[1757859033416,0.002,4630.8,4630.7,13.24960988]
[1757859034245,0.002,4630.8,4630.7,9.51896066]
[1757859034405,0.002,4630.8,4630.7,11.69528851]
[1757859034602,0.002,4630.8,4630.7,12.16748851]
[1757859037440,0.002,4630.8,4630.7,11.69528851]
[1757859037741,0.002,4630.8,4630.7,10.89318851]
[1757859039141,0.7775,4630.8,4630.7,10.09418851]
[1757859040442,0.312,4630.8,4630.7,10.09518851]
[1757859042247,0.312,4630.8,4630.7,10.09418851]
[1757859043851,1.2355,4630.8,4630.7,8.97670072]
[1757859044037,0.7775,4630.8,4630.7,8.97670072]
[1757859044550,0.312,4630.8,4630.7,8.97670072]
[1757859045328,0.312,4630.8,4630.7,5.26670072]
[1757859045644,0.002,4630.8,4630.7,10.21880072]
[1757859045846,0.002,4630.8,4630.7,12.57921452]
[1757859046652,0.002,4630.8,4630.7,12.10701452]
[1757859048023,0.002,4630.8,4630.7,7.65561452]
[1757859048348,0.002,4630.8,4630.7,11.66041452]
[1757859048738,0.002,4630.8,4630.7,11.35761452]
[1757859049239,0.002,4630.8,4630.7,11.25041452]
[1757859049637,0.002,4630.8,4630.7,11.55321452]
[1757859050151,0.002,4630.8,4630.7,12.00341452]
[1757859050329,0.002,4630.8,4630.7,12.45941452]
[1757859054373,0.002,4630.8,4630.7,14.39216966]
[1757859054746,0.002,4630.8,4630.7,13.93616966]
[1757859054948,0.00031624,4630.8,4630.7,13.93616966]
[1757859055177,0.00031624,4630.8,4630.7,14.37976966]
[1757859055753,0.00031624,4630.8,4630.7,13.93616966]
[1757859056375,0.00031624,4630.8,4630.7,12.00341452]
[1757859056572,0.00031624,4630.8,4630.7,13.93322732]
[1757859056773,0.00031624,4630.8,4630.7,14.40716972]
[1757859057382,0.00031624,4630.8,4630.7,14.4068343]
[1757859057564,0.00031624,4630.8,4630.7,12.47731452]
[1757859058292,0.00031624,4630.8,4630.7,14.40661192]
[1757859059350,0.00031624,4630.8,4630.7,14.51381192]
[1757859061777,0.76961624,4630.8,4630.7,10.05881192]
[1757859061984,0.76961624,4630.8,4630.7,13.74681192]
[1757859062680,0.76961624,4630.8,4630.7,9.26681192]
[1757859062867,0.76961624,4630.8,4630.7,11.02551452]
[1757859063071,0.76961624,4630.8,4630.7,11.02451452]
[1757859063285,0.76961624,4630.8,4630.7,10.55061452]
[1757859063485,0.76961624,4630.8,4630.7,5.26670072]
[1757859063659,1.23651624,4630.8,4630.7,5.26670072]
[1757859063861,1.23651624,4630.8,4630.7,8.95270072]
[1757859064066,1.23651624,4630.8,4630.7,5.26670072]
[1757859064405,1.23651624,4630.8,4630.7,8.95270072]
[1757859064897,0.76961624,4630.8,4630.7,10.22972901]
[1757859065373,0.29571624,4630.8,4630.7,10.22972901]
[1757859065576,0.76961624,4630.8,4630.7,10.22972901]
[1757859066086,0.76961624,4630.8,4630.7,10.22772901]
[1757859067979,0.76961624,4630.8,4630.7,8.95070072]
[1757859069169,0.76961624,4630.8,4630.7,8.94770072]
[1757859069500,0.76961624,4630.8,4630.7,5.26670072]
[1757859069664,0.29571624,4630.8,4630.7,8.94770072]
[1757859070214,0.00031624,4630.8,4630.7,11.80652901]
[1757859070371,0.00031624,4630.8,4630.7,12.45111071]
[1757859070571,0.00031624,4630.8,4630.7,14.85430811]
[1757859070781,0.00031624,4630.8,4630.7,14.41070811]
[1757859070972,0.00031624,4630.8,4630.7,12.48141071]
[1757859071296,0.00031624,4630.8,4630.7,12.00721071]
[1757859071610,0.00031624,4630.8,4630.7,11.80622901]
[1757859071938,0.00031624,4630.8,4630.7,11.49012901]
[1757859072100,0.00031624,4630.8,4630.7,12.28042901]
[1757859072426,0.00031624,4630.8,4630.7,11.80622901]
[1757859073970,0.00031624,4630.8,4630.7,14.65332641]
[1757859074170,0.002,4631.3,4631.2,2.95126757]
[1757859074379,0.002,4631.3,4631.2,7.14032808]
[1757859074596,0.2974,4631.3,4631.2,7.24752808]
[1757859074804,0.7713,4631.3,4631.2,7.379838]
[1757859075001,0.7713,4631.3,4631.2,5.83626757]
[1757859075687,0.7713,4631.3,4631.2,7.37886815]
[1757859076500,0.7713,4631.3,4631.2,5.83526757]
[1757859077996,0.7713,4631.3,4631.2,3.70303742]
[1757859078201,0.7713,4631.3,4631.1,1.54376985]
[1757859078202,1.2357,4631.3,4631.1,1.54376985]
[1757859078396,0.42097,4631.3,4631.2,5.83426757]
[1757859078593,0.2974,4631.3,4631.2,2.15926757]
[1757859079001,0.7363,4631.3,4631.2,2.15926757]
[1757859079199,0.7363,4631.3,4631.2,2.18086024]
[1757859079399,1.2007,4631.3,4631.2,2.18086024]
[1757859079914,0.7363,4631.3,4631.2,2.18086024]
[1757859080297,0.2974,4631.3,4631.2,2.18086024]
[1757859080484,0.002,4631.3,4631.2,2.18086024]
[1757859080689,0.002,4631.3,4631.2,3.11516614]
[1757859081589,0.002,4631.3,4631.2,3.13675881]
[1757859081794,0.002,4631.3,4631.2,3.42825881]
[1757859082226,0.002,4631.3,4631.2,4.22025881]
[1757859082528,0.002,4631.3,4631.2,4.19866614]
[1757859082688,0.002,4631.3,4631.2,5.45093599]
[1757859083623,0.3182,4631.3,4631.2,5.45093599]
[1757859083989,0.002,4631.3,4631.2,5.45093599]
[1757859084527,0.002,4631.3,4631.2,6.90716614]
[1757859084724,0.3182,4631.3,4631.2,6.90716614]
[1757859084924,0.3182,4631.3,4631.2,7.01436614]
[1757859085296,0.7571,4631.3,4631.2,6.22236614]
[1757859085609,0.3182,4631.3,4631.2,9.89436614]
[1757859086129,0.7571,4631.3,4631.2,9.89436614]
[1757859087402,0.7571,4631.3,4631.2,8.93846757]
[1757859087726,1.2215,4631.3,4631.2,7.37495242]
[1757859088089,0.7571,4631.3,4631.2,7.37495242]
[1757859088321,0.7571,4631.3,4631.2,3.70295242]
[1757859088534,0.7571,4631.3,4631.2,7.39654509]
[1757859088698,0.7571,4631.3,4631.2,5.83126757]
[1757859091854,0.7571,4631.3,4631.2,2.15926757]
[1757859092164,0.7571,4631.3,4631.2,5.85286024]
[1757859092321,0.7571,4631.3,4631.2,2.15926757]
[1757859092524,0.7571,4631.3,4631.2,5.85286024]
[1757859092855,0.7571,4631.3,4631.2,5.83126757]
[1757859094543,0.7571,4631.3,4631.2,2.15926757]
[1757859094753,0.7571,4631.3,4631.2,5.85286024]
[1757859094956,0.7571,4631.3,4631.2,5.83126757]
[1757859095338,0.002,4631.3,4631.2,2.15926757]
[1757859095644,0.002,4631.3,4631.2,7.27712104]
[1757859095851,0.002,4631.3,4631.2,7.25552837]
[1757859097045,0.002,4631.3,4631.2,8.79913768]
[1757859097250,0.002,4631.3,4631.2,8.79914077]
[1757859097450,0.002,4631.3,4631.2,7.25552837]
[1757859098225,0.002,4631.3,4631.2,8.79923011]
[1757859098432,0.002,4631.3,4631.2,8.02072553]
[1757859098733,0.7571,4631.3,4631.2,7.37512114]
[1757859099356,0.3182,4631.3,4631.2,5.83126757]
[1757859100047,0.3182,4631.3,4631.2,7.37521795]
[1757859100446,0.3182,4631.3,4631.2,5.83126757]
[1757859101757,0.3182,4631.3,4631.2,5.83026757]
[1757859102167,0.002,4631.3,4631.2,6.60886757]
[1757859102463,0.002,4631.3,4631.2,2.93786757]
[1757859102663,0.002,4631.3,4631.2,6.60886757]
[1757859102864,0.002,4631.3,4631.2,7.3346772]
[1757859103334,0.002,4631.3,4631.2,7.53570723]
[1757859103869,0.002,4631.3,4631.2,7.04860723]
[1757859104065,0.7571,4631.3,4631.2,6.0312976]
[1757859104775,0.3182,4631.3,4631.2,6.0312976]
[1757859106743,0.3182,4631.3,4631.2,2.3602976]
[1757859107058,0.3182,4631.3,4631.2,6.0312976]
[1757859107871,0.002,4631.3,4631.2,6.0312976]
[1757859108171,0.2882,4631.3,4631.2,6.0312976]
[1757859108347,0.7519,4631.3,4631.2,6.0312976]
[1757859110140,0.002,4631.3,4631.2,6.0312976]
[1757859110771,0.002,4631.3,4631.2,6.85036292]
[1757859111072,0.002,4631.3,4631.2,7.71716292]
[1757859111369,0.002,4631.3,4631.2,6.95756292]
[1757859111690,0.2882,4631.3,4631.2,6.95756292]
[1757859111844,0.002,4631.3,4631.2,6.95756292]
[1757859112954,0.002,4631.3,4631.2,7.24566292]
[1757859114280,0.2903,4631.3,4631.2,6.95756292]
[1757859114484,0.7223,4631.3,4631.2,6.1384976]
[1757859116282,0.7223,4631.3,4631.2,6.0312976]
[1757859117767,0.2903,4631.3,4631.2,6.0312976]
[1757859118064,0.2903,4631.3,4631.2,6.03131599]
[1757859118467,0.002,4631.3,4631.2,9.82791599]
[1757859118670,0.002,4631.3,4631.2,12.36044315]
[1757859118870,0.002,4631.3,4631.2,14.28974055]
[1757859118871,0.00028392,4631.3,4631.2,14.28974055]
[1757859119165,0.00028392,4631.3,4631.2,13.05091224]
[1757859119857,0.08,4632.8,4632.7,2.15856843]
[1757859120057,0.08,4632.8,4632.7,6.15840253]
[1757859120258,0.08,4632.8,4632.7,6.93341685]
[1757859120462,0.08,4632.8,4632.7,6.63361685]
[1757859121093,2.1171,4634.4,4632.7,7.66764842]
[1757859121291,0.432,4633.8,4633.7,2.15810259]
[1757859121618,0.6192,4634.8,4633.7,0.69784842]
[1757859121914,0.7203,4633.8,4633.7,5.84968361]
[1757859122203,0.6192,4634.8,4633.7,5.84968361]
[1757859122204,0.432,4634.2,4633.7,4.3670927]
[1757859122390,0.2883,4633.8,4633.7,5.82810259]
[1757859122704,0.7203,4633.8,4633.7,6.83754807]
[1757859124186,0.08982799,4637.7,4634.3,0.7203]
[1757859124367,0.08982799,4637.7,4633.8,2.281]
[1757859124368,0.12062514,4638.7,4638.5,2.15586935]
[1757859124570,0.1864343,4640.8,4638.8,1.30593265]
[1757859124571,0.432,4640.5,4638.8,1.30593265]
[1757859124764,0.432,4640.5,4640.3,1.14679513]
[1757859124963,0.7203,4640.4,4639.8,1.52906017]
[1757859125181,0.512,4640.8,4640.2,0.56979439]
[1757859125403,0.512,4640.8,4640.6,0.56979439]
[1757859125609,0.512,4640.8,4640.7,1.02557366]
[1757859125610,0.08,4640.8,4640.7,1.02557366]
[1757859125794,0.08,4640.8,4640.7,4.74460524]
[1757859125989,1.656,4642.7,4640.7,1.45016914]
[1757859126190,0.669,4642.6,4641.2,0.56930944]
[1757859126507,1.656,4642.7,4641.3,0.65356914]
[1757859126508,0.669,4642.5,4641.3,0.65356914]
[1757859126667,2.1541153,4642.3,4641.4,0.65356914]
[1757859126872,2.1541153,4642.3,4641.5,0.39470081]
[1757859126873,3.669,4642.2,4641.5,0.39470081]
[1757859127108,2.15429028,4641.9,4641.6,0.39470081]
[1757859127297,5.729,4641.8,4641.7,0.39470081]
[1757859127476,9.6863,4641.8,4641.7,0.39470081]
[1757859127672,3.0,4641.6,4640.0,0.56930944]
[1757859127980,3.0,4641.6,4640.1,0.84568307]
[1757859127981,2.1548856,4640.7,4640.1,0.84568307]
[1757859128188,2.088,4640.6,4640.2,0.84568307]
[1757859128416,2.088,4640.5,4640.3,0.3929666]
[1757859128738,2.088,4640.5,4640.4,0.3929666]
[1757859128935,2.6133,4640.5,4640.4,0.1964833]
[1757859129323,5.6133,4640.5,4640.4,0.1964833]
[1757859129524,5.6133,4640.5,4638.9,0.09056937]
[1757859129525,3.0,4640.3,4638.9,0.09056937]
[1757859129708,3.0,4640.4,4639.0,0.19602244]
[1757859129909,0.2883,4639.1,4638.9,0.09056937]
[1757859130109,4.09891082,4639.1,4639.0,0.19603665]
[1757859130331,4.76791082,4639.1,4639.0,0.19603665]
[1757859130858,4.76791082,4639.1,4638.9,0.09056937]
[1757859131059,3.237,4639.0,4638.9,0.09056937]
[1757859131353,2.26288345,4638.9,4638.8,0.08]
[1757859131519,3.22018345,4638.9,4638.8,0.08]
[1757859131843,6.22018345,4638.9,4638.8,0.08]
[1757859132547,0.2883,4638.9,4638.8,0.08]
[1757859132708,1.655,4639.1,4638.8,0.27577086]
[1757859132912,4.056,4639.1,4638.9,0.19577086]
[1757859133112,4.056,4639.1,4639.0,0.19577086]
[1757859133412,0.1072,4639.3,4639.0,0.19577086]
[1757859133743,0.5392,4639.3,4639.1,0.19577086]
[1757859133947,0.5392,4639.3,4639.2,0.19577086]
[1757859134243,0.3955,4639.3,4639.2,0.19577086]
[1757859134444,4.1592,4639.3,4639.2,0.19577086]
[1757859135014,1.655,4640.7,4639.2,1.6814831]
[1757859135242,2.118,4641.2,4639.8,0.56930944]
[1757859135418,2.118,4641.2,4640.4,2.15498541]
[1757859135621,2.118,4641.2,4640.2,2.15504378]
[1757859135937,2.118,4641.2,4640.3,2.60482925]
[1757859136135,2.118,4641.2,4640.6,0.56930944]
[1757859136309,2.118,4641.2,4640.7,0.44973837]
[1757859136513,1.655,4641.4,4640.8,0.44973837]
[1757859136514,4.5259,4641.1,4640.8,0.44973837]
[1757859136727,4.049,4641.0,4640.9,0.44973837]
[1757859137216,1.655,4641.4,4640.9,0.44973837]
[1757859137447,4.047,4641.3,4641.0,1.01904781]
[1757859137653,1.655,4641.4,4641.1,0.44973837]
[1757859137815,1.655,4641.4,4641.0,0.56930944]
[1757859137816,4.046,4641.3,4641.2,0.44973837]
[1757859138149,4.3575,4641.3,4641.2,0.44973837]
[1757859138514,0.3115,4641.3,4641.2,0.44973837]
[1757859138711,4.3555,4641.3,4641.2,0.44973837]
[1757859139219,0.3115,4641.3,4641.2,1.01904781]
[1757859139441,4.3495,4641.3,4641.2,1.01904781]
[1757859139652,0.3115,4641.3,4641.2,1.01904781]
[1757859139854,2.1279,4641.4,4641.2,1.25373837]
[1757859139855,1.655,4641.4,4641.2,1.25373837]
[1757859140047,1.655,4641.4,4641.3,1.20881762]
[1757859140357,1.655,4641.4,4641.3,0.93933837]
[1757859140569,5.689,4641.4,4641.3,0.93933837]
[1757859140732,6.4734,4641.4,4641.3,0.44973837]
[1757859141562,6.4734,4641.4,4641.3,0.64463626]
[1757859141730,6.4734,4641.4,4641.3,0.44973837]
[1757859141932,6.4714,4641.4,4641.3,0.44973837]
[1757859142335,6.4714,4641.4,4641.3,1.1979295]
[1757859142735,6.4694,4641.4,4641.3,1.1979295]
[1757859143234,6.4644,4641.4,4641.3,1.1979295]
[1757859144260,6.4644,4641.4,4641.3,0.44973837]
[1757859144427,8.61892234,4641.4,4641.3,0.44973837]
[1757859144632,8.85592234,4641.4,4641.3,1.19951322]
[1757859144865,8.85592234,4641.4,4641.3,1.0121632]
[1757859145041,4.59392234,4641.4,4641.3,0.44973837]
[1757859145245,3.4394,4641.4,4641.3,0.44973837]
[1757859145433,7.4574,4641.4,4641.3,0.44973837]
[1757859145637,3.61324756,4641.4,4641.3,0.44973837]
[1757859145839,7.31974756,4641.4,4641.3,0.44973837]
[1757859146176,6.673,4641.4,4641.3,0.44973837]
[1757859146384,2.9665,4641.4,4641.3,1.01279833]
[1757859146540,6.9815,4641.4,4641.3,0.44973837]
[1757859146740,6.9815,4641.4,4641.3,1.01333722]
[1757859147383,6.9815,4641.4,4641.3,1.19951322]
[1757859147683,2.655,4641.4,4641.3,1.19951322]
[1757859147883,6.9785,4641.4,4641.3,1.19951322]
[1757859148260,6.9785,4641.4,4641.3,0.44973837]
[1757859148460,9.60592234,4641.4,4641.3,0.44973837]
[1757859148760,7.4514,4641.4,4641.3,0.44973837]
[1757859149186,9.60592234,4641.4,4641.3,0.44973837]
[1757859149558,9.84292234,4641.4,4641.3,1.20542768]
[1757859149756,9.84292234,4641.4,4641.3,0.44973837]
[1757859150284,12.84292234,4641.4,4641.3,1.01675391]
[1757859150490,12.84292234,4641.4,4641.3,0.44973837]
[1757859151085,2.15466161,4641.1,4640.5,0.75568931]
[1757859151386,2.15484732,4640.7,4640.6,0.56811622]
[1757859151577,6.86674732,4640.7,4640.6,0.56811622]
[1757859151773,2.26209376,4640.6,4640.5,0.56811622]
[1757859151976,2.39189376,4640.6,4640.5,0.56811622]
[1757859152179,3.17629376,4640.6,4640.3,0.001]
[1757859152356,2.93929376,4640.6,4640.5,0.75568931]
[1757859152553,4.59329376,4640.6,4640.5,0.75568931]
[1757859153194,4.59329376,4640.6,4640.5,1.13323999]
[1757859153698,0.1072,4640.5,4640.3,1.13423999]
[1757859153901,2.46648663,4640.4,4640.3,1.13423999]
[1757859154080,2.93938663,4640.4,4640.3,1.13423999]
[1757859154392,2.93938663,4640.4,4640.3,0.001]
[1757859154393,6.14698663,4640.4,4640.3,0.001]
[1757859155004,4.63891631,4640.4,4640.3,0.001]
[1757859155209,2.80190294,4640.4,4640.3,0.001]
[1757859155414,6.79090294,4640.4,4640.3,0.001]
[1757859155771,7.14398663,4640.4,4640.3,0.001]
[1757859156000,7.45548663,4640.4,4640.3,0.001]
[1757859156207,8.10240295,4640.4,4640.3,1.14508257]
[1757859156512,8.34150295,4640.4,4640.3,1.14508257]
[1757859156713,8.34150295,4640.4,4640.3,0.001]
[1757859157087,8.10240295,4640.4,4640.3,0.001]
[1757859157282,7.45548663,4640.4,4640.3,0.001]
[1757859157595,7.45548663,4640.4,4640.3,1.14522153]
[1757859157900,7.69458663,4640.4,4640.3,0.001]
[1757859158423,7.69458663,4640.4,4640.3,0.76381807]
[1757859158777,7.69458663,4640.4,4640.3,0.001]
[1757859159306,10.93158663,4640.4,4640.3,0.001]
[1757859160417,11.72358663,4640.4,4640.3,0.001]
[1757859161385,6.46648663,4640.4,4640.3,0.001]
[1757859161598,10.43648663,4640.4,4640.3,0.001]
[1757859161989,6.15498663,4640.4,4640.3,0.001]
[1757859162217,3.15498663,4640.4,4640.3,1.277]
[1757859162392,7.12498663,4640.4,4640.3,1.277]
[1757859163219,7.12498663,4640.4,4640.3,2.03981807]
[1757859163518,7.32591025,4640.4,4640.3,2.03981807]
[1757859163817,1.20092362,4640.4,4640.3,1.277]
[1757859164015,5.16792362,4640.4,4640.3,1.277]
[1757859166513,5.16092362,4640.4,4640.3,3.43203307]
[1757859166678,5.15992362,4640.4,4640.3,1.277]
[1757859167099,1.20092362,4640.4,4640.3,1.277]
[1757859167497,5.15792362,4640.4,4640.3,1.277]
[1757859167903,5.15692362,4640.4,4640.3,2.42055759]
[1757859168312,5.15692362,4640.4,4640.3,4.57559066]
[1757859169288,1.20092362,4640.4,4640.3,4.57559066]
[1757859169514,5.15192362,4640.4,4640.3,4.57559066]
[1757859170284,5.15192362,4640.4,4640.3,3.43203307]
[1757859170690,5.15192362,4640.4,4640.3,4.5758722]
[1757859170901,1.20092362,4640.4,4640.3,1.277]
[1757859171102,5.14692362,4640.4,4640.3,2.42087201]
[1757859171412,5.14692362,4640.4,4640.3,1.94887201]
[1757859171580,5.14692362,4640.4,4640.3,2.40707201]
[1757859171782,1.20092362,4640.4,4640.3,3.41823307]
[1757859172121,5.14492362,4640.4,4640.3,3.41823307]
[1757859172984,1.0,4640.7,4640.6,2.15489376]
[1757859173179,0.002,4641.8,4641.7,2.15438309]
[1757859173635,0.002,4641.8,4641.7,2.46788309]
[1757859173807,0.002,4641.8,4641.7,3.41308309]
[1757859174322,0.002,4641.8,4641.7,3.43462692]
[1757859174548,1.654,4644.2,4642.7,2.15391905]
[1757859174827,0.5306,4644.8,4642.8,0.792]
[1757859174828,0.08,4644.8,4642.8,0.792]
[1757859175048,0.08,4644.8,4642.7,3.0]
[1757859175049,0.08,4644.8,4644.6,0.57018901]
[1757859175225,0.08,4644.8,4644.2,0.57018901]
[1757859175541,0.08,4644.8,4644.3,0.57018901]
[1757859175840,2.5764,4644.7,4644.1,0.57018901]
[1757859176149,2.1534087,4643.9,4643.5,0.57018901]
[1757859176349,3.984,4643.8,4643.4,0.57018901]
[1757859176502,0.4506,4644.6,4643.5,0.57018901]
[1757859176702,6.13611515,4644.5,4643.5,1.51538901]
[1757859176902,1.654,4644.7,4643.6,1.01608901]
[1757859176903,3.983,4644.4,4643.6,1.01608901]
[1757859177443,3.983,4644.4,4643.6,0.4459]
[1757859177631,2.15318184,4644.3,4643.6,0.4459]
[1757859177798,0.4718,4644.4,4643.3,0.57018901]
[1757859177999,0.4506,4644.5,4643.4,0.57018901]
[1757859178237,1.654,4644.7,4643.5,2.15354718]
[1757859178238,3.981,4644.4,4643.5,2.15354718]
[1757859178552,1.654,4644.7,4644.3,0.2854]
[1757859178718,1.654,4644.7,4644.3,0.7847]
[1757859178918,3.98,4644.6,4644.4,0.9452]
[1757859179119,3.98,4644.6,4644.5,1.2306]
[1757859179456,1.654,4644.7,4644.5,1.2306]
[1757859179633,1.654,4644.7,4644.5,2.43848343]
[1757859179972,1.654,4644.7,4644.6,0.4993]
[1757859180173,1.654,4644.7,4644.1,0.4993]
[1757859180336,1.654,4644.7,4643.9,0.57018901]
[1757859180660,2.1258,4644.7,4643.3,2.15363608]
[1757859180844,2.15314532,4644.4,4643.4,2.15358587]
[1757859181066,2.1258,4644.7,4643.0,2.15377025]
[1757859181067,4.4266,4644.3,4643.0,0.57018901]
[1757859181233,2.15349852,4643.7,4642.5,3.22347692]
[1757859181434,5.632,4643.6,4642.6,3.17004055]
[1757859181657,3.979,4643.5,4642.5,0.57018901]
[1757859181928,3.979,4643.5,4642.2,0.57018901]
[1757859181929,2.15378354,4643.0,4642.2,0.57018901]
[1757859182128,3.977,4642.9,4642.1,1.01608901]
[1757859182358,2.15356265,4643.5,4642.8,0.2854]
[1757859182560,3.979,4643.4,4642.8,0.2854]
[1757859182761,1.653,4643.6,4642.8,0.2854]
[1757859182762,3.80651013,4643.6,4642.8,0.2854]
[1757859182942,3.978,4643.3,4642.8,0.2854]
[1757859183143,3.978,4643.3,4642.3,2.72426439]
[1757859183144,0.3113,4642.9,4642.0,1.06948901]
[1757859183340,2.26111977,4642.7,4641.7,0.57018901]
[1757859183541,2.26111977,4642.7,4641.5,0.9452]
[1757859183542,0.1072,4642.3,4641.5,1.06948901]
[1757859183767,2.1248,4642.7,4641.1,0.67738901]
[1757859183768,0.1072,4641.7,4641.1,0.67738901]
[1757859184068,3.976,4641.6,4641.0,1.51538901]
[1757859184268,0.1072,4641.8,4641.5,2.43987592]
[1757859184439,4.0822,4641.8,4641.6,0.9452]
[1757859184805,4.0822,4641.8,4641.1,0.9452]
[1757859186166,1.653,4641.7,4640.8,0.64786279]
[1757859186332,2.15443098,4641.6,4640.8,0.08]
[1757859186669,1.653,4641.7,4640.8,0.08]
[1757859186834,2.15457542,4641.3,4640.8,0.08]
[1757859187035,2.46605446,4640.9,4640.8,0.08]
[1757859187470,2.93785446,4640.9,4640.8,0.08]
[1757859188285,3.38845446,4640.9,4640.8,0.08]
[1757859188465,1.2337,4640.9,4640.8,0.08]
[1757859188672,3.38845446,4640.9,4640.8,0.08]
[1757859191058,2.15498663,4640.4,4640.3,0.001]
[1757859191390,7.78298663,4640.4,4640.3,0.001]
[1757859191557,9.01668663,4640.4,4640.3,0.001]
[1757859192187,12.01668663,4640.4,4640.3,0.001]
[1757859192487,12.80868663,4640.4,4640.3,0.001]
[1757859192889,8.04268663,4640.4,4640.3,0.001]
[1757859193061,12.01068663,4640.4,4640.3,0.001]
[1757859195189,8.04268663,4640.4,4640.3,0.001]
[1757859195386,12.00568663,4640.4,4640.3,0.001]
[1757859195891,12.00268663,4640.4,4640.3,0.001]
[1757859196994,12.79468663,4640.4,4640.3,0.001]
[1757859198493,2.15545113,4639.4,4639.3,1e-08]
[1757859198691,10.76745113,4639.4,4639.3,1e-08]
[1757859198865,11.05415113,4639.4,4639.3,1e-08]
[1757859199190,11.95665113,4639.4,4639.3,1e-08]
[1757859200885,12.74865113,4639.4,4639.3,1e-08]
[1757859201762,12.74165113,4639.4,4639.3,1e-08]
[1757859204279,12.73165113,4639.4,4639.3,1e-08]
[1757859205301,12.72865113,4639.4,4639.3,1e-08]
[1757859207880,12.72365113,4639.4,4639.3,1e-08]
[1757859208424,6.80945113,4639.4,4639.3,0.30960001]
[1757859208608,3.80945113,4639.4,4639.3,0.30960001]